bitfinex/quotes_SOLUSD_20241001
["timestamp","ask_amount","ask_price","bid_price","bid_amount"]
[1727744964004,1.6157613,154.75,154.7,6.4641]
[1727744964583,8.0779613,154.75,154.7,6.4641]
[1727744965018,6.4625,154.74,154.69,6.4645]
[1727744965190,1.61592027,154.73,154.69,6.4645]
[1727744965515,6.4625,154.74,154.69,6.4645]
[1727744967121,6.462,154.75,154.7,6.464]
[1727744967503,6.462,154.75,154.71,6.4636]
[1727744967706,8.07776009,154.75,154.71,6.4636]
[1727744968010,8.07776009,154.75,154.7,6.464]
[1727744968808,21.61576009,154.75,154.65,16.1651]
[1727744968994,6.4639,154.71,154.66,6.4657]
[1727744969194,8.08079991,154.7,154.64,6.4665]
[1727744969427,8.08092775,154.69,154.64,6.4665]
[1727744969605,8.08122775,154.68,154.62,22.6353]
[1727744969795,1.61645609,154.67,154.62,22.6353]
[1727744970199,8.08185609,154.67,154.62,22.6353]
[1727744970799,1.61660999,154.66,154.62,22.6353]
[1727744971006,6.465,154.68,154.62,22.6353]
[1727744971214,1.61661322,154.67,154.62,22.6353]
[1727744971995,1.61661322,154.67,154.63,6.4669]
[1727744972213,27.8301,154.7,154.65,6.466]
[1727744972424,27.8301,154.7,154.62,34.26100196]
[1727744972425,1.61634906,154.69,154.62,34.26100196]
[1727744972718,27.8301,154.7,154.64,6.4665]
[1727744973012,8.08099341,154.69,154.64,6.4665]
[1727744973199,21.3659,154.7,154.65,6.4661]
[1727744973200,27.83,154.7,154.65,6.4661]
[1727744973401,1.61638885,154.69,154.65,6.4661]
[1727744974206,8.08098885,154.69,154.63,6.4666]
[1727744975618,6.4653,154.67,154.62,22.6357]
[1727744975826,1.6167379,154.66,154.62,22.6357]
[1727744976622,6.4653,154.67,154.62,22.6357]
[1727744977006,6.4653,154.67,154.58,31.43175625]
[1727744977007,23.776884,154.69,154.58,13.22665429]
[1727744977209,20.0,154.64,154.54,6.34786753]
[1727744977519,6.4675,154.62,154.58,16.1718]
[1727744977723,1.61718797,154.61,154.58,16.1718]
[1727744978719,26.4667,154.64,154.59,6.4686]
[1727744979025,1.61705916,154.63,154.58,16.1718]
[1727744979205,1.61705916,154.63,154.58,22.6409]
[1727744980001,6.4667,154.64,154.58,16.1718]
[1727744980202,6.4667,154.64,154.59,6.4686]
[1727744980404,22.7741,154.65,154.58,16.1718]
[1727744980602,29.2403,154.65,154.6,6.4682]
[1727744981831,16.2468,154.65,154.6,16.1699]
[1727744982123,20.0,154.68,154.6,16.1699]
[1727744982302,20.0,154.66,154.61,6.4674]
[1727744982502,6.4654,154.67,154.62,6.4672]
[1727744983827,21.8891,154.69,154.62,16.1677]
[1727744984009,21.8891,154.69,154.62,34.26040196]
[1727744984208,1.61657987,154.68,154.64,6.4662]
[1727744986926,8.08177987,154.68,154.63,6.467]
[1727744987228,6.4655,154.67,154.62,22.6347]
[1727744987411,8.08224354,154.67,154.62,22.6347]
[1727744987730,28.354,154.69,154.63,6.467]
[1727744988423,1.61658931,154.68,154.63,6.467]
[1727744992111,6.4641,154.7,154.65,6.4661]
[1727744993736,1.6164841,154.69,154.65,6.4661]
[1727744994847,1.6164841,154.69,154.64,6.4665]
[1727744994848,8.0809841,154.69,154.64,6.4665]
[1727744995138,1.61648568,154.68,154.64,6.4665]
[1727744999637,6.4658,154.66,154.62,22.6351]
[1727744999814,1.61676047,154.65,154.62,22.6351]
[1727745000428,1.61676047,154.65,154.62,16.1677]
[1727745000630,22.0769,154.73,154.62,34.26040196]
[1727745000815,22.0769,154.73,154.59,15.7109]
[1727745000816,6.4644,154.7,154.65,6.4658]
[1727745001752,22.0769,154.73,154.66,34.25630196]
[1727745002050,6.4633,154.72,154.67,6.465]
[1727745002821,1.61621933,154.71,154.67,6.465]
[1727745003037,8.07991933,154.71,154.66,22.6293]
[1727745003215,6.4645,154.69,154.64,6.4665]
[1727745003420,1.61638117,154.68,154.64,6.4665]
[1727745003620,1.61638117,154.68,154.63,22.6343]
[1727745003621,8.08138117,154.68,154.63,22.6343]
[1727745003926,1.61657596,154.67,154.63,22.6343]
[1727745005638,6.4645,154.7,154.64,6.4664]
[1727745006043,6.4645,154.7,154.63,16.1674]
[1727745006225,6.4645,154.7,154.65,6.4661]
[1727745006544,22.0769,154.73,154.66,18.09270196]
[1727745006838,6.4633,154.72,154.67,6.4652]
[1727745007144,6.4624,154.74,154.69,6.4644]
[1727745007857,6.4624,154.74,154.68,18.09270196]
[1727745007858,22.6788,154.77,154.7,6.4641]
[1727745008032,6.462,154.75,154.7,6.4641]
[1727745008236,6.462,154.75,154.7,24.55680196]
[1727745009150,8.07827506,154.74,154.68,22.6267]
[1727745009445,6.462,154.75,154.7,6.464]
[1727745009632,22.6788,154.77,154.68,16.1622]
[1727745009633,1.6158093,154.74,154.68,16.1622]
[1727745009835,6.4628,154.74,154.69,6.4642]
[1727745010043,6.4619,154.76,154.71,6.4635]
[1727745010246,6.4619,154.76,154.71,5.9635]
[1727745010841,1.61569648,154.75,154.71,5.9635]
[1727745011822,6.4619,154.76,154.71,5.9635]
[1727745012552,6.4612,154.77,154.72,6.4629]
[1727745012755,6.4599,154.8,154.75,6.4619]
[1727745013248,23.8923265,154.85,154.76,18.09270196]
[1727745014143,6.4591,154.82,154.77,6.4611]
[1727745014834,1.6150907,154.81,154.77,6.4611]
[1727745015449,6.4591,154.82,154.77,6.4611]
[1727745015626,1.61508782,154.84,154.76,18.09270196]
[1727745015835,23.9270265,154.85,154.8,6.4596]
[1727745016430,23.4270265,154.85,154.8,6.4596]
[1727745018051,1.61482026,154.84,154.8,6.4596]
[1727745018847,8.07302026,154.84,154.79,23.776884]
[1727745019657,16.9691265,154.85,154.8,6.4598]
[1727745019955,23.4271265,154.85,154.8,6.4598]
[1727745020440,1.61478888,154.84,154.8,6.4598]
[1727745020753,8.07338888,154.84,154.79,23.776884]
[1727745021733,1.6148437,154.83,154.79,23.776884]
[1727745021942,1.6148437,154.83,154.79,30.237084]
[1727745022553,1.6148437,154.83,154.78,16.151]
[1727745022854,6.4591,154.82,154.78,16.151]
[1727745023041,1.6150416,154.81,154.78,16.151]
[1727745023438,6.4591,154.82,154.78,16.151]
[1727745023948,1.61503539,154.81,154.78,16.151]
[1727745025154,6.4591,154.82,154.78,16.151]
[1727745025358,8.07453519,154.81,154.76,6.4615]
[1727745025556,1.6152051,154.8,154.76,6.4615]
[1727745025732,6.4595,154.81,154.76,6.4615]
[1727745026062,1.61520372,154.8,154.76,6.4615]
[1727745026248,6.4595,154.81,154.76,6.4615]
[1727745027657,1.61520402,154.8,154.76,6.4615]
[1727745028159,6.4595,154.81,154.76,6.4615]
[1727745028735,6.4595,154.81,154.77,6.4611]
[1727745029434,6.4587,154.83,154.78,6.4606]
[1727745030242,1.61504487,154.82,154.78,6.4606]
[1727745030874,6.4583,154.84,154.79,6.4603]
[1727745031165,6.4583,154.84,154.79,23.776884]
[1727745031352,6.7997265,154.85,154.8,6.4599]
[1727745031655,0.3418265,154.85,154.81,6.4595]
[1727745031837,6.7996265,154.85,154.8,6.4598]
[1727745032038,6.7996265,154.85,154.81,6.4591]
[1727745032039,0.3418265,154.85,154.81,6.4591]
[1727745032251,0.3418265,154.85,154.82,6.4589]
[1727745037778,0.3418265,154.85,154.84,6.4582]
[1727745038980,0.3418265,154.85,154.84,48.32778596]
[1727745040876,6.74749524,154.97,154.9,6.4557]
[1727745041190,0.8418265,155.0,154.89,30.232984]
[1727745041191,6.4541,154.94,154.89,30.232984]
[1727745041359,1.61379869,154.93,154.89,30.232984]
[1727745042072,1.61379869,154.93,154.89,46.373384]
[1727745043476,6.4541,154.94,154.89,46.373384]
[1727745043654,6.4541,154.94,154.89,22.5965]
[1727745043856,1.61379659,154.93,154.89,22.5965]
[1727745044079,6.4537,154.95,154.89,16.1404]
[1727745044382,6.4532,154.97,154.92,6.4548]
[1727745044756,6.4524,154.98,154.93,6.4544]
[1727745045162,6.452,154.99,154.94,6.4541]
[1727745045374,6.452,154.99,154.92,18.09270196]
[1727745045587,6.452,154.99,154.93,6.4544]
[1727745046079,8.06592017,154.98,154.93,6.4544]
[1727745046264,6.4525,154.98,154.93,6.4544]
[1727745046462,1.61342128,154.97,154.93,6.4544]
[1727745046776,1.61342128,154.97,154.9,30.232284]
[1727745047079,6.4539,154.95,154.9,6.4554]
[1727745047285,6.4539,154.95,154.88,22.6234]
[1727745047286,8.06795604,154.94,154.89,6.456]
[1727745047455,6.4542,154.94,154.89,6.456]
[1727745051394,6.4551,154.92,154.88,16.1405]
[1727745051683,1.61404874,154.91,154.88,16.1405]
[1727745052065,8.06934874,154.91,154.86,6.4573]
[1727745052256,6.4553,154.91,154.86,6.4573]
[1727745052663,5.9553,154.91,154.86,6.4573]
[1727745053759,1.61406684,154.9,154.86,6.4573]
[1727745054059,1.6140543,154.9,154.86,6.4573]
[1727745054262,5.9553,154.91,154.86,6.4573]
[1727745057975,1.61404928,154.9,154.85,16.1443]
[1727745058280,1.61404928,154.9,154.85,22.6021]
[1727745058281,6.4558,154.9,154.85,22.6021]
[1727745058460,6.4558,154.9,154.85,16.1443]
[1727745058661,6.4558,154.9,154.86,6.4574]
[1727745059379,20.0,154.94,154.86,6.4574]
[1727745059567,6.4553,154.91,154.86,6.4574]
[1727745059882,1.61409241,154.9,154.86,6.4574]
[1727745060094,6.4557,154.9,154.86,6.4574]
[1727745060284,1.6141031,154.93,154.86,6.4574]
[1727745060492,6.4563,154.89,154.85,16.1443]
[1727745060786,20.0,154.94,154.85,22.6018]
[1727745060787,6.4558,154.9,154.85,22.6018]
[1727745061585,1.61420061,154.89,154.85,22.6018]
[1727745062280,6.4558,154.9,154.85,22.6018]
[1727745063866,1.61420049,154.89,154.85,22.6018]
[1727745064161,6.4558,154.9,154.85,22.6018]
[1727745064477,1.61422605,154.89,154.85,16.1443]
[1727745064787,8.07052605,154.89,154.85,16.1443]
[1727745065379,1.61433764,154.88,154.85,16.1443]
[1727745066076,6.4558,154.9,154.85,22.6021]
[1727745066575,15.9969,154.92,154.85,16.1443]
[1727745067883,6.455,154.92,154.87,6.4569]
[1727745068068,20.0,154.94,154.86,41.86958596]
[1727745068273,6.5626,154.95,154.86,41.86958596]
[1727745068274,6.4546,154.93,154.89,6.4561]
[1727745068876,1.613896,154.92,154.88,6.4565]
[1727745069273,8.0685025,154.93,154.88,6.4565]
[1727745069481,6.5626,154.95,154.86,41.86958596]
[1727745069691,13.0163,154.95,154.89,22.5954]
[1727745069997,6.593,154.99,154.9,41.86958596]
[1727745070291,6.4525,154.98,154.93,6.4545]
[1727745072390,8.06631479,154.97,154.91,22.5923]
[1727745072596,6.4541,154.94,154.88,16.1413]
[1727745072801,1.61374378,154.93,154.88,16.1413]
[1727745072976,6.4549,154.93,154.85,6.165]
[1727745073175,6.4549,154.93,154.88,6.4565]
[1727745073581,1.6139568,154.92,154.88,6.4565]
[1727745073996,16.237,154.95,154.86,18.09270196]
[1727745074195,22.691,154.95,154.9,6.4556]
[1727745074581,16.237,154.95,154.88,16.1414]
[1727745074787,6.4541,154.94,154.89,6.4561]
[1727745075704,1.61379609,154.97,154.9,6.4554]
[1727745076206,6.4541,154.94,154.89,6.4561]
[1727745076403,1.61383212,154.93,154.89,6.4561]
[1727745076788,6.4541,154.94,154.89,6.4561]
[1727745077711,1.61383024,154.93,154.89,6.4561]
[1727745078089,20.0,154.98,154.88,16.1414]
[1727745078294,6.4533,154.96,154.91,6.4553]
[1727745078483,1.61363021,154.95,154.91,6.4553]
[1727745078685,6.4533,154.96,154.91,6.4553]
[1727745079297,20.0,154.98,154.91,6.4553]
[1727745079298,8.0673065,154.95,154.91,6.4553]
[1727745079613,20.0,154.98,154.91,6.4553]
[1727745079909,6.4533,154.96,154.91,6.4553]
[1727745081112,6.4545,154.93,154.89,6.456]
[1727745081280,5.9541,154.94,154.89,6.456]
[1727745081486,6.4537,154.95,154.9,6.4557]
[1727745082305,1.61366236,154.94,154.9,6.4557]
[1727745082489,6.4537,154.95,154.9,6.4557]
[1727745084507,6.4545,154.93,154.89,22.5958]
[1727745084703,8.0687408,154.92,154.88,6.4565]
[1727745084906,6.4549,154.92,154.88,6.4565]
[1727745085409,6.4545,154.93,154.88,6.4565]
[1727745085586,1.61395402,154.92,154.88,6.4565]
[1727745086413,6.4545,154.93,154.88,6.4565]
[1727745088008,1.61394947,154.92,154.88,6.4565]
[1727745090008,6.4554,154.91,154.86,16.1432]
[1727745090215,1.61420953,154.9,154.86,22.6005]
[1727745091008,6.4562,154.89,154.85,6.4577]
[1727745091311,1.61427657,154.88,154.85,6.4577]
[1727745092092,1.61431335,154.89,154.85,6.4577]
[1727745092396,6.4553,154.91,154.86,6.4573]
[1727745092718,6.455,154.92,154.87,6.457]
[1727745093016,6.4554,154.91,154.86,6.4573]
[1727745093407,6.4554,154.91,154.85,16.144]
[1727745093408,6.4554,154.91,154.87,6.4569]
[1727745095216,8.06998741,154.9,154.85,16.144]
[1727745095507,6.4554,154.91,154.86,6.4573]
[1727745096513,1.61419123,154.9,154.86,6.4573]
[1727745097014,6.4554,154.91,154.86,6.4573]
[1727745097214,1.61420111,154.9,154.86,6.4573]
[1727745097518,6.4557,154.9,154.86,6.4573]
[1727745097901,20.0,154.93,154.85,22.6018]
[1727745098088,1.61436563,154.92,154.85,16.144]
[1727745098414,6.4554,154.91,154.86,6.4573]
[1727745100093,1.6141967,154.9,154.86,6.4573]
[1727745100711,1.6141967,154.9,154.85,22.6017]
[1727745100992,6.4558,154.9,154.85,22.6017]
[1727745101624,1.61425114,154.89,154.86,6.4574]
[1727745101989,6.4558,154.9,154.86,6.4574]
[1727745102195,6.4553,154.91,154.86,18.01067522]
[1727745103120,1.61419504,154.9,154.86,18.01067522]
[1727745105319,1.61419504,154.9,154.86,6.4574]
[1727745110521,6.4553,154.91,154.86,6.4574]
[1727745110908,1.61420245,154.9,154.86,6.4574]
[1727745111623,6.4562,154.89,154.85,16.144]
[1727745111815,1.61445357,154.88,154.81,15.3846]
[1727745112005,1.61445357,154.88,154.83,6.4583]
[1727745112006,6.4566,154.88,154.83,6.4583]
[1727745112200,1.61454447,154.87,154.83,6.4583]
[1727745112417,6.4566,154.88,154.83,6.4583]
[1727745112620,20.0,154.93,154.84,27.69827522]
[1727745112802,6.4557,154.91,154.86,18.01037522]
[1727745113735,6.4546,154.93,154.88,6.4564]
[1727745113909,28.2054,154.94,154.89,6.4561]
[1727745114110,28.2054,154.94,154.88,27.69397522]
[1727745114111,6.4542,154.94,154.88,27.69397522]
[1727745114426,6.4542,154.94,154.89,6.4561]
[1727745114603,1.61381634,154.93,154.89,6.4561]
[1727745115411,6.4542,154.94,154.89,6.4561]
[1727745117038,1.61386434,154.93,154.89,6.4561]
[1727745117326,6.4537,154.95,154.9,18.00897522]
[1727745117521,6.4533,154.96,154.92,11.55327522]
[1727745118120,22.5022,154.98,154.92,11.55327522]
[1727745118325,22.5022,154.98,154.92,18.00817522]
[1727745118326,6.4532,154.96,154.92,18.00817522]
[1727745118517,1.61357551,154.95,154.92,6.4549]
[1727745118824,1.61357551,154.95,154.9,34.14727522]
[1727745120120,6.4541,154.94,154.9,34.14727522]
[1727745120318,1.6137904,154.93,154.87,17.99757522]
[1727745120529,6.4549,154.92,154.87,6.457]
[1727745120823,8.06934018,154.91,154.87,16.1423]
[1727745121010,1.61413369,154.9,154.87,16.1423]
[1727745121618,6.4549,154.92,154.87,22.5992]
[1727745123036,1.61409988,154.91,154.87,22.5992]
[1727745123532,6.4549,154.92,154.87,22.5992]
[1727745123827,1.61409898,154.91,154.87,22.5992]
[1727745124018,1.61409898,154.91,154.87,16.1423]
[1727745124227,6.4557,154.9,154.85,6.4578]
[1727745124540,6.4557,154.9,154.76,1.12427944]
[1727745124541,6.4566,154.88,154.79,21.7885]
[1727745124833,1.61451601,154.87,154.8,3.62342652]
[1727745125136,6.4566,154.88,154.84,16.1454]
[1727745125518,6.4566,154.88,154.84,22.6036]
[1727745125714,6.4561,154.9,154.84,22.6036]
[1727745126222,8.07066591,154.89,154.84,22.6036]
[1727745126618,6.4562,154.89,154.84,22.6036]
[1727745127735,6.4558,154.9,154.84,16.1454]
[1727745128038,6.4558,154.9,154.85,6.4578]
[1727745128230,1.61427717,154.89,154.85,6.4578]
[1727745128835,1.61427717,154.89,154.84,16.1454]
[1727745128836,6.4558,154.9,154.86,6.4574]
[1727745129231,1.61422448,154.89,154.86,6.4574]
[1727745130840,6.4558,154.9,154.86,6.4574]
[1727745131333,1.61425541,154.89,154.86,6.4574]
[1727745132238,16.3521,154.92,154.84,16.1454]
[1727745132439,6.4553,154.92,154.87,6.4569]
[1727745133926,15.6001,154.96,154.86,16.1429]
[1727745133927,6.4549,154.93,154.88,6.4565]
[1727745134715,20.0,154.94,154.88,6.4565]
[1727745134940,6.4549,154.92,154.87,6.4569]
[1727745136942,1.61409424,154.91,154.87,6.4569]
[1727745137626,15.6001,154.96,154.86,16.1429]
[1727745137830,15.6001,154.96,154.88,6.4562]
[1727745138021,6.4547,154.93,154.88,6.4562]
[1727745138221,1.61398004,154.92,154.88,6.4562]
[1727745139339,1.61398004,154.92,154.86,16.1429]
[1727745139638,1.61418557,154.91,154.86,16.1429]
[1727745139850,1.61417822,154.94,154.86,16.1429]
[1727745141031,20.0,154.95,154.86,16.1429]
[1727745141238,6.4547,154.93,154.89,6.4561]
[1727745141553,13.12327604,154.97,154.9,11.54459067]
[1727745141771,16.1027265,155.0,154.92,27.68119067]
[1727745142349,1.61347102,154.99,154.92,27.68119067]
[1727745142656,6.4528,154.98,154.92,34.13609067]
[1727745142853,1.61347034,154.97,154.92,27.68119067]
[1727745143027,6.4528,154.98,154.93,6.4543]
[1727745143227,1.61339914,154.97,154.93,6.4543]
[1727745143550,1.61339914,154.97,154.92,16.1366]
[1727745143724,8.06659914,154.97,154.92,16.1366]
[1727745143929,1.61345937,154.96,154.92,16.1366]
[1727745144128,8.06685937,154.96,154.92,16.1366]
[1727745144327,6.4534,154.96,154.92,16.1366]
[1727745146318,6.4526,154.98,154.92,16.1366]
[1727745146726,1.61343679,154.97,154.92,16.1366]
[1727745147434,6.4526,154.98,154.92,16.1366]
[1727745148044,1.61343101,154.97,154.92,16.1366]
[1727745148249,6.452,154.99,154.93,23.776884]
[1727745148438,8.06539027,154.99,154.92,16.1366]
[1727745149241,8.06539027,154.99,154.94,6.454]
[1727745150447,6.4526,154.98,154.93,6.4544]
[1727745150642,1.61343466,154.97,154.92,22.5911]
[1727745150826,8.06623466,154.97,154.92,22.5911]
[1727745151150,1.61346138,154.96,154.92,22.5911]
[1727745151546,1.61346138,154.96,154.9,15.8531]
[1727745151739,6.4538,154.95,154.9,22.3085]
[1727745152043,1.61371717,154.94,154.9,22.3085]
[1727745152356,6.4538,154.95,154.9,22.3085]
[1727745152727,20.0,154.99,154.9,15.8531]
[1727745152944,6.4528,154.97,154.92,6.4548]
[1727745153765,1.61358695,154.96,154.92,6.4548]
[1727745154121,8.06688695,154.96,154.91,6.4552]
[1727745154740,6.4533,154.96,154.91,6.4552]
[1727745155246,1.61358628,154.95,154.91,6.4552]
[1727745155946,8.06738628,154.95,154.9,22.3088]
[1727745156132,1.6136615,154.94,154.9,22.3088]
[1727745157021,6.4538,154.95,154.9,22.3088]
[1727745157229,1.61364361,154.94,154.9,22.3088]
[1727745158352,6.4533,154.96,154.91,6.4553]
[1727745158732,15.6329,154.98,154.9,15.8531]
[1727745158930,6.4538,154.95,154.9,22.3088]
[1727745159153,1.6137322,154.94,154.9,6.4557]
[1727745159345,6.4538,154.95,154.9,6.4557]
[1727745160838,6.4538,154.95,154.88,18.03444852]
[1727745160839,1.61373105,154.94,154.86,16.377]
[1727745161039,1.61373105,154.94,154.79,1.12389815]
[1727745161040,6.4559,154.9,154.85,6.4574]
[1727745161350,6.4559,154.9,154.83,16.1463]
[1727745161351,1.61424524,154.89,154.83,16.1463]
[1727745161528,6.4558,154.9,154.85,6.4575]
[1727745161928,1.61429219,154.89,154.83,16.1463]
[1727745162327,6.4575,154.86,154.81,6.4595]
[1727745163353,6.4571,154.87,154.82,6.459]
[1727745163554,1.6145474,154.86,154.82,6.459]
[1727745164236,6.4566,154.88,154.83,6.4586]
[1727745165060,6.4582,154.84,154.78,23.21851616]
[1727745165278,6.4582,154.84,154.78,6.74251616]
[1727745165279,6.4602,154.8,154.78,6.74251616]
[1727745165508,7.82230685,154.83,154.71,3.62782024]
[1727745165777,23.776884,154.81,154.74,6.4623]
[1727745166063,1.61549732,154.8,154.72,18.03444852]
[1727745166263,6.2072,154.83,154.76,6.4613]
[1727745166765,15.3822,154.84,154.76,6.4612]
[1727745167056,1.61489723,154.83,154.74,40.65204852]
[1727745167631,1.61489723,154.83,154.75,23.776884]
[1727745167835,1.61489723,154.83,154.75,30.238684]
[1727745168654,6.1046,154.87,154.75,23.776884]
[1727745168855,6.1046,154.87,154.79,30.237184]
[1727745169852,16.3202,154.88,154.8,6.4595]
[1727745171162,6.4558,154.9,154.8,6.4595]
[1727745171841,6.5995,154.91,154.81,30.236084]
[1727745172041,20.0,154.9,154.82,6.4587]
[1727745172339,20.0,154.9,154.82,6.24786]
[1727745173362,22.7753,154.92,154.83,30.235184]
[1727745173363,16.3202,154.92,154.83,30.235184]
[1727745173570,1.61417389,154.91,154.83,30.235184]
[1727745174558,7.23520084,154.94,154.85,6.4575]
[1727745174760,6.4233,154.95,154.85,6.4575]
[1727745175364,12.8771,154.95,154.85,6.4575]
[1727745176164,8.0682252,154.94,154.85,6.4575]
[1727745176361,6.4546,154.93,154.85,6.4575]
[1727745176561,1.61417362,154.92,154.85,6.4575]
[1727745176872,6.4546,154.93,154.85,6.4575]
[1727745177251,6.4554,154.91,154.84,6.4581]
[1727745177449,6.4554,154.91,154.83,6.4585]
[1727745177673,1.61429525,154.9,154.83,6.4585]
[1727745178384,6.4554,154.91,154.83,6.4585]
[1727745179181,1.61423174,154.9,154.83,6.4585]
[1727745179687,1.61423174,154.9,154.84,6.4582]
[1727745180175,6.4554,154.91,154.84,6.4582]
[1727745180351,20.0,154.94,154.84,18.03444852]
[1727745180552,6.4546,154.93,154.86,6.4573]
[1727745182326,6.4546,154.93,154.82,22.6058]
[1727745182327,6.4598,154.81,154.75,16.2047]
[1727745182611,23.776884,154.89,154.72,16.2047]
[1727745182612,20.0,154.84,154.72,16.2047]
[1727745182772,20.0,154.82,154.74,16.1559]
[1727745182976,1.61532946,154.81,154.73,18.03444852]
[1727745183175,23.776884,154.84,154.73,18.03444852]
[1727745183373,23.776884,154.84,154.75,18.03444852]
[1727745183576,6.4572,154.87,154.75,18.03444852]
[1727745183577,23.776884,154.86,154.75,18.03444852]
[1727745183806,20.0,154.88,154.78,21.2242]
[1727745183984,28.3396,154.91,154.79,24.49454852]
[1727745184151,12.9146,154.95,154.83,18.03444852]
[1727745184360,13.42728819,154.99,154.85,41.81133252]
[1727745184555,19.87938819,154.99,154.87,18.03444852]
[1727745184782,1.61360075,154.98,154.87,18.03444852]
[1727745184976,8.06630075,154.98,154.86,6.4571]
[1727745185572,21.61360075,154.98,154.86,6.4571]
[1727745185877,6.4532,154.97,154.86,6.4571]
[1727745186177,20.0,154.98,154.87,24.49114852]
[1727745186357,6.4521,154.99,154.87,24.49114852]
[1727745187371,0.8418265,155.0,154.85,64.41273252]
[1727745187372,30.229784,154.97,154.85,64.41273252]
[1727745187597,1.61375849,154.96,154.85,64.41273252]
[1727745187866,30.230784,154.95,154.85,16.1437]
[1727745188087,23.776884,154.93,154.85,16.1437]
[1727745188384,1.61401906,154.92,154.85,16.1437]
[1727745189177,1.61401906,154.92,154.84,21.8318]
[1727745189482,1.61416183,154.91,154.84,21.8318]
[1727745190282,1.61416213,154.9,154.84,21.8318]
[1727745190584,6.4548,154.93,154.84,21.8318]
[1727745190585,1.61416305,154.92,154.84,21.8318]
[1727745190958,23.776884,154.91,154.84,21.8318]
[1727745191178,1.6143206,154.9,154.84,21.8318]
[1727745191368,23.776884,154.89,154.84,15.8177]
[1727745191567,1.61443138,154.88,154.84,15.8177]
[1727745191983,1.61443138,154.88,154.8,22.2288]
[1727745192288,1.61443138,154.88,154.8,22.0161]
[1727745192660,30.233284,154.89,154.8,22.0161]
[1727745192661,23.776884,154.89,154.8,22.0161]
[1727745192862,26.4559,154.9,154.8,22.0161]
[1727745193078,1.61436915,154.89,154.8,22.0161]
[1727745193686,23.776884,154.88,154.8,22.0161]
[1727745193983,1.61453791,154.87,154.8,22.0161]
[1727745194486,8.07173791,154.87,154.8,22.0161]
[1727745194866,6.4576,154.86,154.8,15.937]
[1727745195074,8.07265829,154.85,154.8,15.937]
[1727745195278,8.07265829,154.85,154.76,6.0254]
[1727745195864,6.4583,154.84,154.76,6.0254]
[1727745196071,1.61493844,154.83,154.76,6.0254]
[1727745196767,6.4579,154.85,154.76,30.52114852]
[1727745197081,8.07309434,154.84,154.76,24.05984852]
[1727745197262,8.07309434,154.84,154.76,6.0254]
[1727745197664,6.4583,154.84,154.76,6.0254]
[1727745198092,1.61490786,154.83,154.76,6.0254]
[1727745198296,6.4583,154.84,154.76,6.0254]
[1727745199676,6.4583,154.84,154.76,12.487]
[1727745199876,6.4617,154.76,154.69,21.3488]
[1727745200073,45.39184889,154.81,154.69,21.3488]
[1727745200687,6.4619,154.76,154.69,21.3488]
[1727745200892,1.61563791,154.75,154.69,21.3488]
[1727745201097,8.07773791,154.75,154.69,21.3488]
[1727745201295,8.07831463,154.74,154.69,21.3488]
[1727745201593,6.4626,154.74,154.69,21.3488]
[1727745202085,8.07867129,154.73,154.69,21.3488]
[1727745202307,6.4625,154.74,154.69,21.3488]
[1727745202874,1.61590048,154.73,154.65,22.7763]
[1727745203105,6.4641,154.7,154.65,22.7763]
[1727745203278,6.4646,154.69,154.65,22.7763]
[1727745203593,1.61638691,154.68,154.65,16.2539]
[1727745203779,23.776884,154.73,154.65,16.2539]
[1727745203979,6.465,154.68,154.61,6.5224]
[1727745204192,1.61660364,154.67,154.61,6.5224]
[1727745204577,6.4658,154.66,154.61,6.5224]
[1727745205004,8.08302193,154.65,154.61,6.5224]
[1727745205173,6.4663,154.65,154.61,6.5224]
[1727745206315,1.61679679,154.64,154.6,16.3114]
[1727745206489,1.61690278,154.64,154.6,16.3114]
[1727745206804,8.08350278,154.64,154.6,16.3114]